[Event "Titled Tuesday Blitz June 14 Early 2022"]
[White "Daneshvar, Bardiya"]
[Black "Puranik, Abhimanyu"]
[WhiteFideId "12576468"]
[BlackFideId "5061245"]
[WhiteElo "2303"]
[BlackElo "2520"]
[Result "0-1"]
[Round "08"]
[TimeControl "180+1"]
[Date "2022.06.14"]
[WhiteClock "0:00:09"]
[BlackClock "0:00:17"]

1. b3 {[%clk 0:03:00]}  Nf6 {[%clk 0:02:55]} 2. Bb2 {[%clk 0:03:00]}  g6 {[%clk 0:02:56]} 3. g3 {[%clk 0:03:00]}  Bg7 {[%clk 0:02:56]} 4. Bg2 {[%clk 0:03:01]}  O-O {[%clk 0:02:56]} 5. Nf3 {[%clk 0:02:59]}  d6 {[%clk 0:02:56]} 6. d4 {[%clk 0:02:59]}  a5 {[%clk 0:02:57]} 7. Nc3 {[%clk 0:02:56]}  d5 {[%clk 0:02:53]} 8. O-O {[%clk 0:02:54]}  c6 {[%clk 0:02:53]} 9. Ne5 {[%clk 0:02:52]}  Nbd7 {[%clk 0:02:52]} 10. e4 {[%clk 0:02:46]}  Nxe5 {[%clk 0:02:49]} 11. dxe5 {[%clk 0:02:47]}  Nxe4 {[%clk 0:02:50]} 12. Nxe4 {[%clk 0:02:46]}  dxe4 {[%clk 0:02:50]} 13. Bxe4 {[%clk 0:02:45]}  Qc7 {[%clk 0:02:49]} 14. f4 {[%clk 0:02:41]}  Rd8 {[%clk 0:02:48]} 15. Qe2 {[%clk 0:02:35]}  a4 {[%clk 0:02:47]} 16. Kg2 {[%clk 0:02:32]}  Be6 {[%clk 0:02:42]} 17. c4 {[%clk 0:02:24]}  Qc8 {[%clk 0:02:35]} 18. Rfd1 {[%clk 0:02:20]}  Rxd1 {[%clk 0:02:20]} 19. Rxd1 {[%clk 0:02:17]}  Bh3+ {[%clk 0:01:59]} 20. Kf2 {[%clk 0:02:12]}  axb3 {[%clk 0:01:58]} 21. axb3 {[%clk 0:02:11]}  Bg4 {[%clk 0:01:57]} 22. Bf3 {[%clk 0:02:08]}  Bxf3 {[%clk 0:01:58]} 23. Kxf3 {[%clk 0:02:09]}  h5 {[%clk 0:01:46]} 24. Ra1 {[%clk 0:02:00]}  Rxa1 {[%clk 0:01:44]} 25. Bxa1 {[%clk 0:02:01]}  Qg4+ {[%clk 0:01:44]} 26. Ke3 {[%clk 0:01:52]}  Qh3 {[%clk 0:01:29]} 27. Bd4 {[%clk 0:01:42]}  e6 {[%clk 0:01:25]} 28. Kf3 {[%clk 0:01:26]}  g5 {[%clk 0:01:03]} 29. Be3 {[%clk 0:01:10]}  Qf5 {[%clk 0:00:58]} 30. Kg2 {[%clk 0:01:03]}  Qe4+ {[%clk 0:00:52]} 31. Kf2 {[%clk 0:00:57]}  g4 {[%clk 0:00:50]} 32. Qd1 {[%clk 0:00:45]}  Bf8 {[%clk 0:00:48]} 33. c5 {[%clk 0:00:40]}  Kg7 {[%clk 0:00:38]} 34. Qd2 {[%clk 0:00:20]}  Be7 {[%clk 0:00:36]} 35. b4 {[%clk 0:00:15]}  Qh1 {[%clk 0:00:36]} 36. Ke2 {[%clk 0:00:09]}  Qxh2+ {[%clk 0:00:35]} 37. Bf2 {[%clk 0:00:10]}  h4 {[%clk 0:00:23]} 38. f5 {[%clk 0:00:09]}  exf5 {[%clk 0:00:17]} 39. Qf4 {[%clk 0:00:09]}  hxg3 {[%clk 0:00:16]} 40. Qxg3 {[%clk 0:00:09]}  Qxg3 {[%clk 0:00:16]} 41. Bxg3 {[%clk 0:00:09]}  Bg5 {[%clk 0:00:17]} 0-1


[Site "https://www.chess.com"]

[Event "Titled Tuesday Blitz June 14 Early 2022"]
[White "Dauner, Benedikt"]
[Black "Stribuk, Artiom"]
[WhiteFideId "16225899"]
[BlackFideId "13515659"]
[WhiteElo "2230"]
[BlackElo "2259"]
[Result "0-1"]
[Round "08"]
[TimeControl "180+1"]
[Date "2022.06.14"]
[WhiteClock "0:00:03"]
[BlackClock "0:00:26"]

1. e4 {[%clk 0:02:59]}  c5 {[%clk 0:02:59]} 2. c3 {[%clk 0:02:58]}  Nf6 {[%clk 0:02:58]} 3. e5 {[%clk 0:02:57]}  Nd5 {[%clk 0:02:58]} 4. Nf3 {[%clk 0:02:57]}  d6 {[%clk 0:02:57]} 5. exd6 {[%clk 0:02:38]}  e6 {[%clk 0:02:56]} 6. Bc4 {[%clk 0:02:33]}  Bxd6 {[%clk 0:02:55]} 7. O-O {[%clk 0:02:31]}  O-O {[%clk 0:02:55]} 8. d4 {[%clk 0:02:31]}  cxd4 {[%clk 0:02:54]} 9. Nxd4 {[%clk 0:02:27]}  Nc6 {[%clk 0:02:54]} 10. Nxc6 {[%clk 0:02:20]}  bxc6 {[%clk 0:02:54]} 11. Nd2 {[%clk 0:02:21]}  Qc7 {[%clk 0:02:54]} 12. h3 {[%clk 0:02:20]}  Rd8 {[%clk 0:02:53]} 13. Qf3 {[%clk 0:02:19]}  c5 {[%clk 0:02:34]} 14. Ne4 {[%clk 0:02:18]}  Be7 {[%clk 0:02:33]} 15. Bg5 {[%clk 0:02:13]}  Bb7 {[%clk 0:02:29]} 16. Bxe7 {[%clk 0:02:08]}  Nxe7 {[%clk 0:02:28]} 17. Qe2 {[%clk 0:01:55]}  h6 {[%clk 0:02:26]} 18. Rad1 {[%clk 0:01:53]}  Ng6 {[%clk 0:02:24]} 19. Qe3 {[%clk 0:01:44]}  Ne5 {[%clk 0:02:11]} 20. Qxc5 {[%clk 0:01:25]}  Rdc8 {[%clk 0:01:23]} 21. Qxc7 {[%clk 0:00:13]}  Rxc7 {[%clk 0:01:24]} 22. Bxe6 {[%clk 0:00:13]}  Bxe4 {[%clk 0:01:21]} 23. Bb3 {[%clk 0:00:12]}  Bg6 {[%clk 0:01:13]} 24. Rfe1 {[%clk 0:00:11]}  Nd3 {[%clk 0:01:12]} 25. Re2 {[%clk 0:00:11]}  a5 {[%clk 0:00:45]} 26. Red2 {[%clk 0:00:11]}  a4 {[%clk 0:00:40]} 27. Bd5 {[%clk 0:00:10]}  Rb8 {[%clk 0:00:31]} 28. Rxd3 {[%clk 0:00:10]}  Bxd3 {[%clk 0:00:32]} 29. Rxd3 {[%clk 0:00:11]}  Rxb2 {[%clk 0:00:32]} 30. g4 {[%clk 0:00:08]}  Rc2 {[%clk 0:00:30]} 31. Rd4 {[%clk 0:00:05]}  a3 {[%clk 0:00:30]} 32. c4 {[%clk 0:00:04]}  Rxa2 {[%clk 0:00:29]} 33. Rd3 {[%clk 0:00:05]}  Ra1+ {[%clk 0:00:28]} 34. Kg2 {[%clk 0:00:05]}  Ra7 {[%clk 0:00:26]} 35. c5 {[%clk 0:00:05]}  Rc1 {[%clk 0:00:26]} 36. c6 {[%clk 0:00:05]}  a2 {[%clk 0:00:26]} 37. Bxa2 {[%clk 0:00:05]}  Rxa2 {[%clk 0:00:25]} 38. Rd8+ {[%clk 0:00:04]}  Kh7 {[%clk 0:00:26]} 39. Rd7 {[%clk 0:00:05]}  f6 {[%clk 0:00:26]} 40. Rd6 {[%clk 0:00:05]}  Rac2 {[%clk 0:00:26]} 41. Rd7 {[%clk 0:00:04]}  Rxc6 {[%clk 0:00:27]} 42. Kg3 {[%clk 0:00:05]}  R6c3+ {[%clk 0:00:27]} 43. Kh4 {[%clk 0:00:05]}  Rh1 {[%clk 0:00:26]} 44. f3 {[%clk 0:00:05]}  Rxf3 {[%clk 0:00:25]} 45. Rxg7+ {[%clk 0:00:02]}  Kxg7 {[%clk 0:00:25]} 46. g5 {[%clk 0:00:03]}  Rhxh3+ {[%clk 0:00:25]} 47. Kg4 {[%clk 0:00:03]}  h5# {[%clk 0:00:26]} 0-1


[Site "https://www.chess.com"]

[Event "Titled Tuesday Blitz June 14 Early 2022"]
[White "Dubov, Daniil"]
[Black "Zierk, Steven"]
[WhiteFideId "24126055"]
[BlackFideId "2034255"]
[WhiteElo "2791"]
[BlackElo "2494"]
[Result "1-0"]
[Round "08"]
[TimeControl "180+1"]
[Date "2022.06.14"]
[WhiteClock "0:01:21"]
[BlackClock "0:00:25"]

1. d4 {[%clk 0:03:00]}  d5 {[%clk 0:02:56]} 2. c4 {[%clk 0:02:59]}  dxc4 {[%clk 0:02:57]} 3. Nf3 {[%clk 0:02:59]}  Nf6 {[%clk 0:02:57]} 4. e3 {[%clk 0:02:59]}  e6 {[%clk 0:02:57]} 5. Bxc4 {[%clk 0:02:59]}  c5 {[%clk 0:02:57]} 6. Qe2 {[%clk 0:02:59]}  a6 {[%clk 0:02:57]} 7. dxc5 {[%clk 0:02:58]}  Bxc5 {[%clk 0:02:56]} 8. O-O {[%clk 0:02:58]}  O-O {[%clk 0:02:56]} 9. Rd1 {[%clk 0:02:55]}  Qe7 {[%clk 0:02:56]} 10. b3 {[%clk 0:02:54]}  b5 {[%clk 0:02:54]} 11. Bd3 {[%clk 0:02:53]}  Bb7 {[%clk 0:02:55]} 12. Bb2 {[%clk 0:02:53]}  Nbd7 {[%clk 0:02:55]} 13. a3 {[%clk 0:02:40]}  Rac8 {[%clk 0:02:43]} 14. Nbd2 {[%clk 0:02:39]}  Rfd8 {[%clk 0:02:37]} 15. a4 {[%clk 0:02:20]}  bxa4 {[%clk 0:02:33]} 16. Rxa4 {[%clk 0:02:21]}  Bb4 {[%clk 0:02:25]} 17. Bxa6 {[%clk 0:02:11]}  Bxa6 {[%clk 0:02:06]} 18. Rxa6 {[%clk 0:02:10]}  Nc5 {[%clk 0:02:06]} 19. Raa1 {[%clk 0:01:56]}  Qb7 {[%clk 0:01:44]} 20. Bxf6 {[%clk 0:01:48]}  gxf6 {[%clk 0:01:43]} 21. Nd4 {[%clk 0:01:40]}  Bc3 {[%clk 0:01:37]} 22. Rac1 {[%clk 0:01:38]}  Bxd4 {[%clk 0:01:29]} 23. Qg4+ {[%clk 0:01:31]}  Kf8 {[%clk 0:00:59]} 24. exd4 {[%clk 0:01:32]}  Nd3 {[%clk 0:00:50]} 25. Rxc8 {[%clk 0:01:29]}  Rxc8 {[%clk 0:00:50]} 26. Qh4 {[%clk 0:01:25]}  f5 {[%clk 0:00:26]} 27. Qxh7 {[%clk 0:01:23]}  Qb4 {[%clk 0:00:25]} 28. Qh8+ {[%clk 0:01:21]} 1-0


[Site "https://www.chess.com"]

[Event "Titled Tuesday Blitz June 14 Early 2022"]
[White "Fedoseev, Vladimir"]
[Black "Xiong, Jeffery"]
[WhiteFideId "24130737"]
[BlackFideId "2047640"]
[WhiteElo "2726"]
[BlackElo "2714"]
[Result "0-1"]
[Round "08"]
[TimeControl "180+1"]
[Date "2022.06.14"]
[WhiteClock "0:00:06"]
[BlackClock "0:00:08"]

1. e4 {[%clk 0:02:59]}  c5 {[%clk 0:02:58]} 2. Nf3 {[%clk 0:03:00]}  d6 {[%clk 0:02:59]} 3. d4 {[%clk 0:03:00]}  cxd4 {[%clk 0:02:59]} 4. Nxd4 {[%clk 0:03:00]}  Nf6 {[%clk 0:03:00]} 5. Nc3 {[%clk 0:02:59]}  a6 {[%clk 0:03:01]} 6. Be3 {[%clk 0:02:59]}  Nbd7 {[%clk 0:02:58]} 7. g4 {[%clk 0:02:57]}  h6 {[%clk 0:02:58]} 8. h4 {[%clk 0:02:52]}  b5 {[%clk 0:02:45]} 9. Bg2 {[%clk 0:02:49]}  Ne5 {[%clk 0:02:44]} 10. g5 {[%clk 0:02:49]}  Nfg4 {[%clk 0:02:35]} 11. Bc1 {[%clk 0:02:38]}  hxg5 {[%clk 0:02:34]} 12. Bxg5 {[%clk 0:02:31]}  Bb7 {[%clk 0:02:22]} 13. Nd5 {[%clk 0:02:22]}  Nf6 {[%clk 0:02:06]} 14. Qe2 {[%clk 0:02:16]}  e6 {[%clk 0:02:06]} 15. Nf4 {[%clk 0:01:59]}  Qa5+ {[%clk 0:02:01]} 16. c3 {[%clk 0:01:48]}  Be7 {[%clk 0:02:01]} 17. Rh3 {[%clk 0:01:38]}  Rc8 {[%clk 0:01:56]} 18. Rg3 {[%clk 0:01:36]}  b4 {[%clk 0:01:54]} 19. Nb3 {[%clk 0:01:09]}  Qa4 {[%clk 0:01:54]} 20. Nd2 {[%clk 0:00:57]}  bxc3 {[%clk 0:01:54]} 21. bxc3 {[%clk 0:00:58]}  Bc6 {[%clk 0:01:43]} 22. c4 {[%clk 0:00:56]}  Bd7 {[%clk 0:01:42]} 23. Rc3 {[%clk 0:00:53]}  Qa5 {[%clk 0:01:36]} 24. Rac1 {[%clk 0:00:48]}  Nfg4 {[%clk 0:01:28]} 25. Bxe7 {[%clk 0:00:42]}  Kxe7 {[%clk 0:01:29]} 26. h5 {[%clk 0:00:41]}  Nf6 {[%clk 0:01:29]} 27. Nb3 {[%clk 0:00:32]}  Qb4 {[%clk 0:01:28]} 28. a3 {[%clk 0:00:31]}  Qxa3 {[%clk 0:01:17]} 29. Nd4 {[%clk 0:00:29]}  Qa5 {[%clk 0:01:16]} 30. Kf1 {[%clk 0:00:28]}  Qc5 {[%clk 0:00:51]} 31. Nb3 {[%clk 0:00:27]}  Qb6 {[%clk 0:00:51]} 32. Kg1 {[%clk 0:00:26]}  a5 {[%clk 0:00:44]} 33. c5 {[%clk 0:00:25]}  dxc5 {[%clk 0:00:45]} 34. Nxc5 {[%clk 0:00:25]}  Bb5 {[%clk 0:00:28]} 35. Qb2 {[%clk 0:00:25]}  Rhd8 {[%clk 0:00:21]} 36. Na4 {[%clk 0:00:23]}  Qb8 {[%clk 0:00:10]} 37. Qa3+ {[%clk 0:00:18]}  Ke8 {[%clk 0:00:11]} 38. Nc5 {[%clk 0:00:18]}  Qd6 {[%clk 0:00:11]} 39. Qxa5 {[%clk 0:00:18]}  Rb8 {[%clk 0:00:08]} 40. Qa7 {[%clk 0:00:15]}  Nc6 {[%clk 0:00:08]} 41. Qa3 {[%clk 0:00:15]}  Qxf4 {[%clk 0:00:08]} 42. Na6 {[%clk 0:00:13]}  Ng4 {[%clk 0:00:08]} 43. Rg3 {[%clk 0:00:09]}  Bxa6 {[%clk 0:00:08]} 44. Rxc6 {[%clk 0:00:06]}  Rb1+ {[%clk 0:00:08]} 0-1


[Site "https://www.chess.com"]

[Event "Titled Tuesday Blitz June 14 Early 2022"]
[White "Jobava, Baadur"]
[Black "Rodrigue-Lemieux, Shawn"]
[WhiteFideId "13601520"]
[BlackFideId "2620049"]
[WhiteElo "2617"]
[BlackElo "1763"]
[Result "0-1"]
[Round "08"]
[TimeControl "180+1"]
[Date "2022.06.14"]
[WhiteClock "0:00:36"]
[BlackClock "0:00:17"]

1. b3 {[%clk 0:03:00]}  d5 {[%clk 0:02:57]} 2. Bb2 {[%clk 0:03:01]}  Bg4 {[%clk 0:02:57]} 3. f3 {[%clk 0:03:01]}  Bh5 {[%clk 0:02:57]} 4. e3 {[%clk 0:03:02]}  Nf6 {[%clk 0:02:56]} 5. d4 {[%clk 0:03:01]}  e6 {[%clk 0:02:56]} 6. Nc3 {[%clk 0:03:02]}  c5 {[%clk 0:02:54]} 7. g4 {[%clk 0:03:02]}  Bg6 {[%clk 0:02:53]} 8. h4 {[%clk 0:03:02]}  h5 {[%clk 0:02:53]} 9. g5 {[%clk 0:03:02]}  Nfd7 {[%clk 0:02:54]} 10. Nge2 {[%clk 0:03:02]}  Nc6 {[%clk 0:02:54]} 11. Nf4 {[%clk 0:03:02]}  Bd6 {[%clk 0:02:49]} 12. Nxg6 {[%clk 0:03:02]}  fxg6 {[%clk 0:02:44]} 13. Bd3 {[%clk 0:02:59]}  Kf7 {[%clk 0:02:30]} 14. Nb5 {[%clk 0:02:38]}  Bg3+ {[%clk 0:02:20]} 15. Kf1 {[%clk 0:02:37]}  a6 {[%clk 0:02:17]} 16. Nc3 {[%clk 0:02:34]}  cxd4 {[%clk 0:02:15]} 17. Ne2 {[%clk 0:02:34]}  Bd6 {[%clk 0:02:10]} 18. Nxd4 {[%clk 0:02:33]}  e5 {[%clk 0:01:57]} 19. Ne2 {[%clk 0:02:12]}  Ne7 {[%clk 0:01:50]} 20. c4 {[%clk 0:02:11]}  Qb6 {[%clk 0:01:43]} 21. Qd2 {[%clk 0:01:49]}  Bb4 {[%clk 0:01:43]} 22. Qc1 {[%clk 0:01:40]}  Rac8 {[%clk 0:01:42]} 23. Kg2 {[%clk 0:01:37]}  Rhf8 {[%clk 0:01:37]} 24. Nc3 {[%clk 0:01:18]}  Kg8 {[%clk 0:01:30]} 25. Re1 {[%clk 0:01:06]}  dxc4 {[%clk 0:01:12]} 26. Bxc4+ {[%clk 0:01:06]}  Kh7 {[%clk 0:01:12]} 27. Rd1 {[%clk 0:01:00]}  Nf5 {[%clk 0:01:05]} 28. Nd5 {[%clk 0:00:55]}  Nxh4+ {[%clk 0:00:50]} 29. Kh1 {[%clk 0:00:55]}  Qc6 {[%clk 0:00:30]} 30. Qc2 {[%clk 0:00:55]}  Rxf3 {[%clk 0:00:25]} 31. Qh2 {[%clk 0:00:55]}  b5 {[%clk 0:00:20]} 32. Be2 {[%clk 0:00:41]}  Rxe3 {[%clk 0:00:20]} 33. Rac1 {[%clk 0:00:40]}  Bc5 {[%clk 0:00:19]} 34. Bxh5 {[%clk 0:00:36]}  Re1+ {[%clk 0:00:17]} 0-1


[Site "https://www.chess.com"]

[Event "Titled Tuesday Blitz June 14 Early 2022"]
[White "Kobalia, Mikhail"]
[Black "Samant Aditya S"]
[WhiteFideId "4119150"]
[BlackFideId "35080580"]
[WhiteElo "2667"]
[BlackElo "1968"]
[Result "1-0"]
[Round "08"]
[TimeControl "180+1"]
[Date "2022.06.14"]
[WhiteClock "0:02:41"]
[BlackClock "0:02:11"]

1. e4 {[%clk 0:02:57]}  c5 {[%clk 0:02:59]} 2. Nf3 {[%clk 0:02:56]}  d6 {[%clk 0:03:00]} 3. d4 {[%clk 0:02:57]}  cxd4 {[%clk 0:03:00]} 4. Nxd4 {[%clk 0:02:57]}  Nf6 {[%clk 0:03:01]} 5. Nc3 {[%clk 0:02:58]}  Nc6 {[%clk 0:03:02]} 6. Bg5 {[%clk 0:02:57]}  e6 {[%clk 0:03:02]} 7. Qd2 {[%clk 0:02:58]}  a6 {[%clk 0:03:03]} 8. O-O-O {[%clk 0:02:58]}  h6 {[%clk 0:03:03]} 9. Be3 {[%clk 0:02:57]}  Nxd4 {[%clk 0:03:03]} 10. Bxd4 {[%clk 0:02:57]}  b5 {[%clk 0:03:03]} 11. f3 {[%clk 0:02:56]}  Qa5 {[%clk 0:03:03]} 12. Kb1 {[%clk 0:02:55]}  b4 {[%clk 0:03:03]} 13. Ne2 {[%clk 0:02:54]}  e5 {[%clk 0:03:03]} 14. Bf2 {[%clk 0:02:51]}  Be6 {[%clk 0:03:04]} 15. b3 {[%clk 0:02:46]}  d5 {[%clk 0:02:52]} 16. Bh4 {[%clk 0:02:42]}  dxe4 {[%clk 0:02:11]} 17. Bxf6 {[%clk 0:02:42]}  gxf6 {[%clk 0:02:12]} 18. fxe4 {[%clk 0:02:42]}  Bc5 {[%clk 0:02:11]} 19. Ng3 {[%clk 0:02:41]} 1-0


[Site "https://www.chess.com"]

[Event "Titled Tuesday Blitz June 14 Early 2022"]
[White "Livaic, Leon"]
[Black "Bharath Subramaniyam H"]
[WhiteFideId "14531534"]
[BlackFideId "46634827"]
[WhiteElo "2540"]
[BlackElo "2242"]
[Result "0-1"]
[Round "08"]
[TimeControl "180+1"]
[Date "2022.06.14"]
[WhiteClock "0:00:01"]
[BlackClock "0:00:07"]

1. d4 {[%clk 0:03:00]}  Nf6 {[%clk 0:02:57]} 2. c4 {[%clk 0:03:01]}  e6 {[%clk 0:02:57]} 3. Nf3 {[%clk 0:03:01]}  c5 {[%clk 0:02:57]} 4. d5 {[%clk 0:03:01]}  d6 {[%clk 0:02:58]} 5. Nc3 {[%clk 0:03:01]}  exd5 {[%clk 0:02:59]} 6. cxd5 {[%clk 0:03:02]}  g6 {[%clk 0:02:59]} 7. e4 {[%clk 0:03:03]}  Bg7 {[%clk 0:02:59]} 8. Bg5 {[%clk 0:03:00]}  O-O {[%clk 0:02:58]} 9. Nd2 {[%clk 0:03:00]}  h6 {[%clk 0:02:57]} 10. Bh4 {[%clk 0:03:01]}  a6 {[%clk 0:02:57]} 11. Qc2 {[%clk 0:03:00]}  b5 {[%clk 0:02:57]} 12. a4 {[%clk 0:03:00]}  b4 {[%clk 0:02:56]} 13. Nd1 {[%clk 0:03:01]}  Re8 {[%clk 0:02:55]} 14. Be2 {[%clk 0:02:59]}  Qe7 {[%clk 0:02:36]} 15. Ne3 {[%clk 0:02:24]}  g5 {[%clk 0:02:21]} 16. Bg3 {[%clk 0:02:24]}  Nxe4 {[%clk 0:02:19]} 17. Nxe4 {[%clk 0:02:18]}  Qxe4 {[%clk 0:02:20]} 18. Bd3 {[%clk 0:02:12]}  Qxd5 {[%clk 0:02:16]} 19. O-O {[%clk 0:02:08]}  Qc6 {[%clk 0:02:15]} 20. Bc4 {[%clk 0:02:01]}  Be6 {[%clk 0:02:07]} 21. Rad1 {[%clk 0:01:59]}  Bxc4 {[%clk 0:01:55]} 22. Qxc4 {[%clk 0:01:57]}  Re6 {[%clk 0:01:51]} 23. Nf5 {[%clk 0:01:50]}  Bf8 {[%clk 0:01:42]} 24. h4 {[%clk 0:01:34]}  Nd7 {[%clk 0:01:12]} 25. hxg5 {[%clk 0:01:34]}  hxg5 {[%clk 0:01:13]} 26. Qg4 {[%clk 0:01:11]}  Qe4 {[%clk 0:01:08]} 27. Qxg5+ {[%clk 0:00:36]}  Rg6 {[%clk 0:01:07]} 28. Qf4 {[%clk 0:00:36]}  Qxf4 {[%clk 0:00:24]} 29. Bxf4 {[%clk 0:00:37]}  Nf6 {[%clk 0:00:18]} 30. Bxd6 {[%clk 0:00:35]}  Re8 {[%clk 0:00:16]} 31. Bxf8 {[%clk 0:00:32]}  Kxf8 {[%clk 0:00:17]} 32. g3 {[%clk 0:00:20]}  Rg5 {[%clk 0:00:17]} 33. Ne3 {[%clk 0:00:17]}  Ne4 {[%clk 0:00:17]} 34. Nc4 {[%clk 0:00:15]}  Re6 {[%clk 0:00:17]} 35. Rfe1 {[%clk 0:00:14]}  Kg7 {[%clk 0:00:13]} 36. Kg2 {[%clk 0:00:12]}  Rgg6 {[%clk 0:00:09]} 37. Re3 {[%clk 0:00:11]}  Ng5 {[%clk 0:00:08]} 38. Rd5 {[%clk 0:00:09]}  Rxe3 {[%clk 0:00:08]} 39. Nxe3 {[%clk 0:00:10]}  Ne4 {[%clk 0:00:08]} 40. Re5 {[%clk 0:00:10]}  Re6 {[%clk 0:00:08]} 41. Rd5 {[%clk 0:00:08]}  Rc6 {[%clk 0:00:08]} 42. Nc4 {[%clk 0:00:06]}  Kf6 {[%clk 0:00:07]} 43. f3 {[%clk 0:00:06]}  Ng5 {[%clk 0:00:07]} 44. f4 {[%clk 0:00:05]}  Ne6 {[%clk 0:00:07]} 45. Kf3 {[%clk 0:00:05]}  Nd4+ {[%clk 0:00:07]} 46. Ke4 {[%clk 0:00:06]}  Ke6 {[%clk 0:00:07]} 47. g4 {[%clk 0:00:04]}  f6 {[%clk 0:00:07]} 48. f5+ {[%clk 0:00:04]}  Ke7 {[%clk 0:00:07]} 49. Ne3 {[%clk 0:00:03]}  Nb3 {[%clk 0:00:05]} 50. Kd3 {[%clk 0:00:03]}  Na5 {[%clk 0:00:05]} 51. Nc4 {[%clk 0:00:03]}  Nb7 {[%clk 0:00:05]} 52. Ke4 {[%clk 0:00:02]}  Rc7 {[%clk 0:00:05]} 53. Rd2 {[%clk 0:00:03]}  Nd8 {[%clk 0:00:05]} 54. Kf4 {[%clk 0:00:03]}  Nf7 {[%clk 0:00:06]} 55. Ne3 {[%clk 0:00:02]}  Rc6 {[%clk 0:00:04]} 56. Nd5+ {[%clk 0:00:02]}  Kf8 {[%clk 0:00:05]} 57. b3 {[%clk 0:00:03]}  Kg7 {[%clk 0:00:05]} 58. Ne7 {[%clk 0:00:02]}  Rc7 {[%clk 0:00:05]} 59. Nd5 {[%clk 0:00:02]}  Rd7 {[%clk 0:00:05]} 60. Ke3 {[%clk 0:00:03]}  Ne5 {[%clk 0:00:05]} 61. Nf4 {[%clk 0:00:02]}  Nxg4+ {[%clk 0:00:05]} 62. Ke2 {[%clk 0:00:02]}  Rxd2+ {[%clk 0:00:05]} 63. Kxd2 {[%clk 0:00:03]}  Kf7 {[%clk 0:00:05]} 64. Ne6 {[%clk 0:00:03]}  c4 {[%clk 0:00:05]} 65. bxc4 {[%clk 0:00:04]}  Nh6 {[%clk 0:00:05]} 66. Nd4 {[%clk 0:00:05]}  a5 {[%clk 0:00:05]} 67. Kd3 {[%clk 0:00:04]}  Ke7 {[%clk 0:00:05]} 68. Nc6+ {[%clk 0:00:04]}  Kd6 {[%clk 0:00:06]} 69. Nxa5 {[%clk 0:00:05]}  Nxf5 {[%clk 0:00:06]} 70. Nb3 {[%clk 0:00:04]}  Ne7 {[%clk 0:00:07]} 71. a5 {[%clk 0:00:03]}  Kc6 {[%clk 0:00:07]} 72. a6 {[%clk 0:00:04]}  Kb6 {[%clk 0:00:07]} 73. Nc5 {[%clk 0:00:02]}  Nc6 {[%clk 0:00:07]} 74. Nd7+ {[%clk 0:00:02]}  Kxa6 {[%clk 0:00:07]} 75. Nxf6 {[%clk 0:00:03]}  Ka5 {[%clk 0:00:07]} 76. Nd5 {[%clk 0:00:03]}  b3 {[%clk 0:00:08]} 77. Kc3 {[%clk 0:00:03]}  Ka4 {[%clk 0:00:08]} 78. Kb2 {[%clk 0:00:03]}  Na5 {[%clk 0:00:09]} 79. c5 {[%clk 0:00:03]}  Nc4+ {[%clk 0:00:09]} 80. Kc3 {[%clk 0:00:03]}  b2 {[%clk 0:00:09]} 81. Kc2 {[%clk 0:00:04]}  Ka3 {[%clk 0:00:09]} 82. Nc3 {[%clk 0:00:03]}  Ne3+ {[%clk 0:00:09]} 83. Kd3 {[%clk 0:00:03]}  Nd5 {[%clk 0:00:09]} 84. Nb1+ {[%clk 0:00:01]}  Ka2 {[%clk 0:00:10]} 85. Nd2 {[%clk 0:00:02]}  Nf4+ {[%clk 0:00:08]} 86. Kc2 {[%clk 0:00:01]}  Ne6 {[%clk 0:00:07]} 87. Kc3 {[%clk 0:00:02]}  Nxc5 {[%clk 0:00:07]} 88. Kc2 {[%clk 0:00:01]}  Ne4 {[%clk 0:00:07]} 89. Nb1 {[%clk 0:00:01]}  Ka1 {[%clk 0:00:07]} 0-1


[Site "https://www.chess.com"]

[Event "Titled Tuesday Blitz June 14 Early 2022"]
[White "Mchedlishvili, Mikheil"]
[Black "Narayanan, Srinath"]
[WhiteFideId "13600966"]
[BlackFideId "5018420"]
[WhiteElo "2545"]
[BlackElo "2472"]
[Result "1-0"]
[Round "08"]
[TimeControl "180+1"]
[Date "2022.06.14"]
[WhiteClock "0:00:32"]
[BlackClock "0:00:13"]

1. d4 {[%clk 0:03:00]}  Nf6 {[%clk 0:02:59]} 2. Bf4 {[%clk 0:03:00]}  d5 {[%clk 0:02:58]} 3. Nf3 {[%clk 0:02:59]}  c5 {[%clk 0:02:58]} 4. e3 {[%clk 0:03:00]}  Nc6 {[%clk 0:02:58]} 5. Nbd2 {[%clk 0:03:00]}  Bg4 {[%clk 0:02:58]} 6. c3 {[%clk 0:02:58]}  e6 {[%clk 0:02:58]} 7. Qb3 {[%clk 0:02:58]}  Qc8 {[%clk 0:02:46]} 8. Be2 {[%clk 0:02:57]}  Be7 {[%clk 0:02:45]} 9. h3 {[%clk 0:02:54]}  Bh5 {[%clk 0:02:45]} 10. g4 {[%clk 0:02:53]}  Bg6 {[%clk 0:02:45]} 11. Nh4 {[%clk 0:02:52]}  cxd4 {[%clk 0:02:29]} 12. Nxg6 {[%clk 0:02:44]}  hxg6 {[%clk 0:02:29]} 13. exd4 {[%clk 0:02:44]}  Qd7 {[%clk 0:02:29]} 14. Be3 {[%clk 0:02:00]}  Bd6 {[%clk 0:02:25]} 15. O-O-O {[%clk 0:01:42]}  a6 {[%clk 0:02:22]} 16. Kb1 {[%clk 0:01:41]}  b5 {[%clk 0:02:22]} 17. Qc2 {[%clk 0:01:37]}  Rc8 {[%clk 0:02:21]} 18. Nb3 {[%clk 0:01:34]}  Ne4 {[%clk 0:01:42]} 19. Bd3 {[%clk 0:01:31]}  Nb4 {[%clk 0:01:40]} 20. Qe2 {[%clk 0:01:27]}  Nxd3 {[%clk 0:01:40]} 21. Qxd3 {[%clk 0:01:28]}  Qb7 {[%clk 0:01:34]} 22. f3 {[%clk 0:01:18]}  Ng3 {[%clk 0:01:28]} 23. Rhg1 {[%clk 0:01:17]}  Rxh3 {[%clk 0:01:27]} 24. Nc5 {[%clk 0:01:12]}  Qc6 {[%clk 0:01:13]} 25. Rg2 {[%clk 0:01:12]}  b4 {[%clk 0:00:59]} 26. cxb4 {[%clk 0:01:08]}  Qb5 {[%clk 0:01:00]} 27. a3 {[%clk 0:01:01]}  Ke7 {[%clk 0:00:46]} 28. Nxa6 {[%clk 0:00:48]}  Qxd3+ {[%clk 0:00:39]} 29. Rxd3 {[%clk 0:00:48]}  Nf1 {[%clk 0:00:38]} 30. Bg5+ {[%clk 0:00:37]}  f6 {[%clk 0:00:38]} 31. Bc1 {[%clk 0:00:38]}  Rh1 {[%clk 0:00:17]} 32. Rc2 {[%clk 0:00:37]}  Ra8 {[%clk 0:00:18]} 33. Nc5 {[%clk 0:00:37]}  Ng3 {[%clk 0:00:18]} 34. Ka2 {[%clk 0:00:36]}  Rf1 {[%clk 0:00:15]} 35. b5 {[%clk 0:00:36]}  e5 {[%clk 0:00:15]} 36. dxe5 {[%clk 0:00:34]}  fxe5 {[%clk 0:00:16]} 37. Rxd5 {[%clk 0:00:34]}  Rxf3 {[%clk 0:00:15]} 38. Bg5+ {[%clk 0:00:33]}  Kf7 {[%clk 0:00:12]} 39. Rxd6 {[%clk 0:00:32]}  e4 {[%clk 0:00:12]} 40. Rd7+ {[%clk 0:00:31]}  Kg8 {[%clk 0:00:13]} 41. b6 {[%clk 0:00:32]} 1-0


[Site "https://www.chess.com"]